bitfinex/quotes_ETHUSD_20260219
["timestamp","ask_amount","ask_price","bid_price","bid_amount"]
[1771538198134,1.27630128,1949.9,1949.8,0.001]
[1771538202110,1.27256242,1949.9,1949.8,0.001]
[1771538202314,1.27630128,1949.9,1949.8,0.001]
[1771538204015,1.27740128,1949.9,1949.8,0.001]
[1771538204748,0.00483886,1949.9,1949.8,0.001]
[1771538207569,0.00483886,1949.9,1949.8,0.02294151]
[1771538208166,0.00483886,1949.9,1949.8,0.001]
[1771538208957,0.0011,1949.9,1949.8,0.001]
[1771538209252,0.00483886,1949.9,1949.8,0.001]
[1771538215948,0.00483886,1949.9,1949.8,0.02321194]
[1771538216142,1.27740128,1949.9,1949.8,0.001]
[1771538225258,0.00483886,1949.9,1949.8,0.001]
[1771538229265,0.00483886,1949.9,1949.8,0.001]
[1771538232870,1.27740128,1949.9,1949.8,0.001]
[1771538236471,0.00483886,1949.9,1949.8,0.001]
[1771538238777,1.27740128,1949.9,1949.8,0.001]
[1771538239765,0.00483886,1949.9,1949.8,0.001]
[1771538240455,0.0011,1949.9,1949.8,0.001]
[1771538240655,0.00483886,1949.9,1949.8,0.001]
[1771538245377,0.0011,1949.9,1949.8,0.001]
[1771538245686,0.00483886,1949.9,1949.8,0.001]
[1771538250516,0.00483886,1949.9,1949.8,0.02397841]
[1771538250861,0.0011,1950.2,1949.9,0.01815033]
[1771538251359,1.27608185,1950.2,1949.8,0.001]
[1771538251561,1.27608185,1950.2,1949.8,0.01917559]
[1771538253700,1.27608185,1950.2,1949.9,1.30133424]
[1771538254705,0.0011,1950.1,1949.9,1.30133424]
[1771538264924,1.27608185,1950.1,1949.9,0.001]
[1771538266128,1.24544504,1950.2,1950.0,0.001]
[1771538272028,1.24434504,1950.1,1950.0,0.001]
[1771538278539,1.24544504,1950.1,1950.0,0.001]
[1771538279439,1.24544504,1950.1,1949.9,0.001]
[1771538279440,1.24434504,1950.0,1949.9,0.001]
[1771538280946,0.0011,1950.1,1949.9,1.15977089]
[1771538282247,0.0011,1950.1,1949.9,2.44188008]
[1771538284847,0.0011,1950.1,1949.9,0.001]
[1771538285146,1.25898534,1950.1,1949.9,0.001]
[1771538291057,1.25898534,1950.1,1950.0,0.001]
[1771538291838,2.54097087,1950.1,1950.0,0.001]
[1771538292160,1.28363136,1950.0,1949.7,0.001]
[1771538292367,1.28363136,1949.8,1949.4,1.19690611]
[1771538292531,1.28363136,1949.8,1949.2,2.47947691]
[1771538293032,1.28363136,1949.6,1949.2,2.47947691]
[1771538297159,1.28363136,1949.6,1949.2,1.19690611]
[1771538297471,1.28363136,1949.5,1949.2,2.47947836]
[1771538298339,1.28363136,1949.5,1949.2,1.19690611]
[1771538298537,1.28363136,1949.5,1949.1,3.40449086]
[1771538298740,1.28363136,1949.5,1949.1,3.40454463]
[1771538299677,1.28363136,1949.5,1949.2,1.19690611]
[1771538302741,1.28363136,1949.5,1949.2,2.48046057]
[1771538307902,1.28363136,1949.5,1949.2,1.19790611]
[1771538309262,1.28363136,1949.5,1949.2,2.48048006]
[1771538310697,1.28363136,1949.5,1949.2,0.001]
[1771538315376,1.28473136,1949.5,1949.2,0.001]
[1771538323135,1.2194255,1949.4,1949.2,0.001]
[1771538324711,1.2194255,1949.4,1949.0,0.00253886]
[1771538325106,1.28251167,1949.3,1949.0,0.00253886]
[1771538325420,1.2194255,1949.2,1949.0,0.00253886]
[1771538327910,1.2194255,1949.1,1949.0,0.00253886]
[1771538330144,1.2194255,1949.1,1948.9,0.001]
[1771538330434,1.2194255,1949.1,1948.5,1.24285919]
[1771538330435,1.2194255,1948.9,1948.5,1.24285919]
[1771538330638,1.28266777,1949.1,1948.5,1.24285919]
[1771538330835,1.2194255,1949.2,1948.6,1.24285919]
[1771538331335,1.2194255,1949.0,1948.4,2.52590265]
[1771538331508,1.2194255,1948.9,1948.4,1.28304346]
[1771538331709,1.2194255,1948.9,1948.5,1.24285919]
[1771538336345,1.2194255,1948.9,1948.6,1.28297239]
[1771538336840,1.2194255,1948.9,1948.5,2.52584494]
[1771538338016,1.2194255,1948.8,1948.5,1.24285919]
[1771538339048,1.2194255,1948.8,1948.5,2.52589464]
[1771538339543,1.2194255,1948.8,1948.5,1.24285919]
[1771538339939,1.2194255,1948.8,1948.6,0.001]
[1771538341049,1.2194255,1948.9,1948.6,1.24385919]
[1771538341251,1.2194255,1948.8,1948.6,0.001]
[1771538341946,1.2194255,1948.8,1948.6,1.28396809]
[1771538342332,1.17304971,1949.0,1948.6,2.47646497]
[1771538346236,1.17304971,1949.0,1948.6,0.001]
[1771538346562,1.17194971,1948.8,1948.6,0.001]
[1771538353165,2.45479715,1948.8,1948.4,1.14449688]
[1771538354070,2.45479715,1948.8,1948.7,0.001]
[1771538359982,1.24692735,1948.7,1948.5,0.001]
[1771538360782,1.24802735,1948.9,1948.5,1.26117644]
[1771538363179,1.24692735,1948.8,1948.5,1.26117644]
[1771538364256,1.24692735,1948.8,1948.5,0.001]
[1771538366787,1.24692735,1948.8,1948.5,1.26078969]
[1771538367157,2.52977219,1948.8,1948.5,1.26078969]
[1771538367884,1.24692735,1948.7,1948.5,0.001]
[1771538368066,1.24692735,1948.7,1948.6,0.001]
[1771538368391,1.24802735,1948.7,1948.6,0.001]
[1771538373190,2.5309339,1948.7,1948.6,0.001]
[1771538373369,1.24692735,1948.6,1948.5,0.001]
[1771538376498,1.24692735,1948.6,1948.1,1.26028492]
[1771538376499,1.24692735,1948.5,1948.1,1.26028492]
[1771538378796,1.18361591,1948.2,1947.9,7.60297871]
[1771538381182,1.18361591,1948.2,1947.9,6.41845228]
[1771538381506,1.18361591,1948.2,1947.9,7.60297871]
[1771538382214,1.18361591,1948.2,1947.9,1.18452643]
[1771538383116,1.18361591,1948.2,1948.0,0.001]
[1771538385090,1.18361591,1948.4,1948.1,1.18452643]
[1771538385290,2.46776314,1948.5,1948.1,1.18452643]
[1771538386215,2.46776314,1948.5,1948.2,6.41845228]
[1771538388119,1.18471591,1948.5,1948.2,7.60297871]
[1771538388306,0.0011,1948.6,1948.3,1.18452643]
[1771538389610,1.18471591,1948.6,1948.3,1.18452643]
[1771538390617,1.18471591,1948.6,1948.2,1.28323399]
[1771538390785,1.18361591,1948.4,1948.1,1.18452643]
[1771538392716,0.0011,1948.7,1948.2,5.31641634]
[1771538392920,0.0011,1948.7,1948.1,4.77061123]
[1771538393099,0.0011,1948.7,1948.2,1.18452643]
[1771538393718,0.0011,1948.7,1948.4,1.18452643]
[1771538395605,0.00263886,1949.0,1948.4,1.18452643]
[1771538395811,0.0011,1949.2,1948.9,1.18452643]
[1771538398032,0.0011,1949.2,1949.1,1.18452643]
[1771538398636,0.0011,1949.5,1949.1,1.18452643]
[1771538398936,5.3190552,1950.0,1949.0,1.28270908]
[1771538398937,0.0011,1950.5,1949.7,1.18452643]
[1771538399135,1.18471591,1950.8,1950.3,1.18452643]
[1771538399136,0.0011,1950.8,1950.3,1.18452643]
[1771538399305,2.46488695,1951.2,1950.5,1.18452643]
[1771538399725,1.18361591,1951.2,1950.5,1.18452643]
[1771538399929,1.18361591,1951.2,1950.7,1.18452643]
[1771538400335,1.18361591,1950.8,1950.0,1.18452643]
[1771538400535,1.18361591,1950.6,1950.0,1.18452643]
[1771538402028,2.46527858,1950.6,1950.0,2.46652431]
[1771538402228,1.18361591,1950.6,1950.0,2.46652431]
[1771538402435,1.18361591,1950.6,1950.1,1.17641215]
[1771538402751,2.46527942,1950.6,1950.1,1.17641215]
[1771538403118,1.18361591,1950.6,1950.1,1.17641215]
[1771538403325,2.46527654,1950.6,1950.1,1.17641215]
[1771538403717,1.28166063,1950.6,1950.1,1.17641215]
[1771538403942,1.16821316,1950.5,1950.1,2.45838165]
[1771538404347,1.16821316,1950.4,1949.9,2.45846993]
[1771538404718,1.16821316,1950.4,1950.0,1.17641215]
[1771538404916,1.16821316,1950.4,1949.8,0.925]
[1771538405435,1.16821316,1950.4,1949.8,3.38359361]
[1771538405941,1.16821316,1950.4,1949.9,1.17641215]
[1771538406150,1.16821316,1950.4,1949.9,2.45849593]
[1771538406353,2.45000907,1950.4,1949.9,2.45849593]
[1771538406749,1.16821316,1950.4,1949.9,2.45849593]
[1771538406951,2.45001215,1950.4,1949.9,2.45849593]
[1771538407127,1.28179899,1950.4,1949.9,2.45849593]
[1771538407443,1.22997551,1950.3,1949.9,1.17641215]
[1771538409332,1.22997551,1950.3,1949.9,2.45852247]
[1771538409648,1.22997551,1950.2,1949.8,3.4345634]
[1771538410153,1.22997551,1950.2,1949.9,1.22738989]
[1771538410652,1.23107551,1950.2,1949.9,1.22738989]
[1771538411535,1.23107551,1950.2,1949.9,2.50948759]
[1771538412218,1.23107551,1950.2,1949.9,1.2820977]
[1771538418249,1.23107551,1950.2,1949.9,2.50948759]
[1771538418549,1.23107551,1950.2,1949.8,5.12871952]
[1771538418550,1.22997551,1950.1,1949.4,0.924]
[1771538419851,1.22997551,1949.9,1949.4,0.924]
[1771538421552,1.28205128,1950.0,1949.5,1.22738989]
[1771538421737,2.51202679,1950.0,1949.5,1.22738989]
[1771538421935,1.22997551,1949.9,1949.5,1.22738989]
[1771538422664,1.22997551,1949.9,1949.4,0.924]
[1771538423266,1.22997551,1949.9,1949.5,0.001]
[1771538423665,1.28218278,1949.8,1949.5,0.001]
[1771538423973,1.22997551,1949.7,1949.5,0.001]
[1771538425777,2.51223193,1949.7,1949.5,0.001]
[1771538427548,1.22997551,1949.7,1949.5,0.001]
[1771538428345,1.22997551,1949.5,1949.2,0.001]
[1771538428550,6.54279863,1949.6,1949.3,1.22738989]
[1771538428771,1.22997551,1949.6,1949.3,1.22738989]
[1771538429249,1.22997551,1949.6,1949.2,0.001]
[1771538430144,1.22997551,1949.4,1949.2,0.001]
[1771538432666,2.51242438,1949.4,1949.2,0.001]
[1771538433079,1.22997551,1949.3,1949.2,0.001]
[1771538433881,1.22997551,1949.3,1949.0,0.00153886]
[1771538434065,1.22997551,1949.1,1948.6,1.22738989]
[1771538435084,1.22997551,1948.9,1948.6,1.22738989]
[1771538436188,1.22997551,1948.9,1948.7,0.001]
[1771538437290,2.51275639,1948.9,1948.7,0.001]
[1771538440290,1.22997551,1948.9,1948.7,0.001]
[1771538440490,2.51275049,1948.9,1948.7,0.001]
[1771538441297,1.28277498,1948.9,1948.7,1.16572083]
[1771538442076,2.43812775,1948.9,1948.7,0.001]
[1771538443607,1.15535277,1948.9,1948.7,0.001]
[1771538443903,1.15535277,1949.1,1948.7,1.16572083]
[1771538444476,1.15535277,1949.0,1948.7,1.16572083]
[1771538445408,1.28266218,1949.1,1948.7,1.16572083]
[1771538446005,2.43801495,1949.1,1948.7,1.16572083]
[1771538446502,1.15535277,1949.1,1948.7,1.16572083]
[1771538446670,2.43791156,1949.3,1948.8,1.16472083]
[1771538449082,0.0011,1949.0,1948.8,1.16472083]
[1771538449652,0.0011,1949.0,1948.9,1.16472083]
[1771538450207,1.15645277,1949.0,1948.7,1.16572083]
[1771538450398,1.15645277,1949.0,1948.7,0.001]
[1771538451677,1.15645277,1949.0,1948.7,1.16572083]
[1771538452214,2.43916857,1949.0,1948.7,1.16572083]
[1771538453319,1.15645277,1949.0,1948.7,1.16572083]
[1771538455616,1.15645277,1949.0,1948.5,1.16572083]
[1771538457018,1.28277489,1948.9,1948.5,1.16572083]
[1771538458016,1.15535277,1948.9,1948.5,0.001]
[1771538459118,1.15535277,1948.7,1948.5,0.001]
[1771538461293,2.43825932,1948.7,1948.6,0.001]
[1771538466530,2.43825932,1948.7,1948.3,0.001]
[1771538466531,1.16433259,1948.6,1948.3,0.001]
[1771538466695,1.28290655,1948.7,1948.3,1.25398304]
[1771538466902,2.43974687,1948.7,1948.3,1.25398304]
[1771538467323,1.15684032,1948.6,1948.3,1.25398304]
[1771538467997,2.44077895,1948.9,1948.4,1.14056121]
[1771538468524,1.15684032,1948.8,1948.4,1.14056121]
[1771538468902,1.15684032,1948.8,1948.5,1.14056121]
[1771538470825,2.43968587,1948.8,1948.5,1.14056121]
[1771538473604,2.43968587,1948.8,1948.5,1.14156121]
[1771538474017,0.0011,1948.7,1948.5,1.14156121]
[1771538478741,0.0011,1948.7,1948.6,1.14056121]
[1771538478933,0.0011,1948.8,1948.6,1.14056121]
[1771538480134,0.0011,1948.9,1948.6,1.14056121]
[1771538480822,0.0011,1948.9,1948.7,1.14056121]
[1771538484826,0.0011,1948.9,1948.8,1.14056121]
[1771538486043,0.0011,1948.9,1948.8,2.42340193]
[1771538486225,0.0011,1948.9,1948.8,1.14056121]
[1771538491008,0.0011,1948.9,1948.8,2.42340193]
[1771538491145,0.0011,1949.1,1949.0,1.14056121]
[1771538491332,0.0011,1949.3,1949.1,1.14056121]
[1771538491530,1.15794032,1949.3,1948.9,1.14056121]
[1771538491734,1.15794032,1949.3,1948.8,2.42340193]
[1771538491945,1.15794032,1949.3,1948.8,1.28284072]
[1771538492264,1.15684032,1949.7,1949.0,1.14056121]
[1771538492851,1.15684032,1949.7,1949.2,1.14056121]
[1771538493854,1.15684032,1949.6,1949.2,1.14056121]
[1771538494270,1.15684032,1949.7,1949.2,1.14056121]
[1771538495577,1.15684032,1949.7,1949.3,2.42307288]
[1771538496643,1.15684032,1949.7,1949.4,1.20198805]
[1771538497767,1.15684032,1949.7,1949.4,2.48439577]
[1771538497947,0.0011,1949.8,1949.4,2.48439577]
[1771538498278,0.0011,1949.8,1949.5,1.20198805]
[1771538499487,0.0011,1949.6,1949.5,1.20198805]
[1771538499660,0.0011,1949.9,1949.6,1.28231432]
[1771538499986,0.0011,1949.9,1949.7,1.14198805]
[1771538500167,1.17672874,1949.9,1949.6,1.20198805]
[1771538501586,0.0011,1949.9,1949.6,1.20198805]
[1771538502663,1.1771676,1950.0,1949.7,1.28224855]
[1771538502978,0.00153886,1950.0,1949.8,1.20198805]
[1771538505469,0.00153886,1950.0,1949.8,1.28214945]
[1771538505666,0.00153886,1950.0,1949.9,1.20198805]
[1771538506096,0.00153886,1950.0,1949.6,5.12913015]
[1771538506295,1.17562874,1949.9,1949.4,1.20198805]
[1771538507900,1.17562874,1949.9,1949.5,1.28238009]
[1771538508201,1.17562874,1949.9,1949.5,2.48436814]
[1771538508400,1.17562874,1949.9,1949.6,1.20198805]
[1771538508901,0.00153886,1950.0,1949.6,1.20198805]
[1771538509194,1.1771676,1950.0,1949.6,1.20198805]
[1771538511492,1.1771676,1950.0,1949.6,2.48424183]
[1771538512572,1.1771676,1950.0,1949.6,1.28225378]
[1771538512773,0.0011,1949.9,1949.7,1.20198805]
[1771538514993,1.17672874,1949.9,1949.4,1.20198805]
[1771538515317,1.17672874,1949.9,1949.5,1.20198805]
[1771538516300,1.17672874,1949.9,1949.5,2.48436774]
[1771538521933,1.16708287,1949.8,1949.3,1.11566849]
[1771538522233,1.16708287,1949.8,1949.3,1.28350839]
[1771538522834,1.16708287,1949.8,1949.3,2.39817688]
[1771538524034,0.00263886,1950.0,1949.4,1.11466849]
[1771538524538,1.16818287,1950.3,1949.4,1.11466849]
[1771538525316,1.16818287,1950.3,1949.7,1.11466849]
[1771538525516,0.0011,1949.9,1949.7,1.11466849]
[1771538525732,0.0011,1950.3,1949.7,1.11466849]
[1771538525909,0.0011,1950.3,1949.9,1.11466849]
[1771538526115,0.0011,1950.0,1949.9,1.11466849]
[1771538526312,0.0011,1950.2,1949.9,1.11466849]
[1771538526634,0.0011,1950.5,1949.9,1.11466849]
[1771538526635,0.0011,1950.5,1950.3,1.11466849]
[1771538530522,1.17093494,1950.5,1950.0,2.48001405]
[1771538531041,1.17093494,1950.5,1949.9,2.20610779]
[1771538531421,1.17093494,1950.5,1949.9,3.40411848]
[1771538534249,1.16983494,1950.4,1949.9,3.40411848]
[1771538538341,1.16983494,1950.3,1949.9,3.40411848]
[1771538538540,1.17093494,1950.3,1949.9,3.40412332]
[1771538539062,1.17093494,1950.3,1949.9,2.48012332]
[1771538547893,1.16983494,1950.2,1949.8,2.48014932]
[1771538551098,1.16983494,1950.1,1950.0,0.001]
[1771538551266,1.16983494,1950.1,1949.6,0.001]
[1771538551793,1.16983494,1950.1,1949.9,0.001]
[1771538552492,1.16983494,1950.1,1949.6,0.001]
[1771538554779,1.16983494,1949.9,1949.6,0.001]
[1771538557703,1.28217297,1949.9,1949.6,0.001]
[1771538557892,1.17479082,1949.8,1949.6,0.001]
[1771538560506,1.17479082,1949.7,1949.6,0.001]
[1771538562204,1.17479082,1949.8,1949.6,0.001]
[1771538563385,2.4569771,1949.8,1949.6,0.001]
[1771538563605,1.17479082,1949.8,1949.6,0.001]
[1771538563804,1.17479082,1949.7,1949.6,0.001]
[1771538563978,1.17479082,1949.7,1949.5,0.001]
[1771538565402,1.17479082,1949.6,1949.5,0.001]
[1771538565596,1.17479082,1949.6,1949.4,0.001]
[1771538565776,1.17479082,1949.6,1949.4,0.002]
[1771538566177,1.17479082,1949.6,1949.2,0.001]
[1771538567897,1.17479082,1949.4,1949.2,0.001]
[1771538570000,2.45730249,1949.3,1949.2,0.001]
[1771538570184,1.17479082,1949.2,1949.0,0.00253886]
[1771538573117,2.45738095,1949.2,1949.0,0.00253886]
[1771538573283,1.17479082,1949.2,1949.0,0.00253886]
[1771538577335,2.45736828,1949.2,1949.1,0.001]
[1771538577628,1.17479082,1949.1,1948.7,0.001]
[1771538578133,1.17479082,1949.1,1948.8,1.20125832]
[1771538578628,0.0011,1949.2,1948.8,1.20125832]
[1771538579402,1.28368196,1949.2,1948.8,1.20125832]
[1771538580027,0.0011,1949.2,1948.8,2.48409885]
[1771538580322,0.0011,1949.2,1948.9,1.20025832]
[1771538582320,1.09274314,1949.2,1948.9,1.20025832]
[1771538584221,2.37532929,1949.2,1948.9,1.20025832]
[1771538586023,0.0011,1949.2,1948.9,1.20025832]
[1771538586404,0.0011,1949.2,1949.0,1.11249875]
[1771538589821,0.0011,1949.2,1949.1,1.12827441]
[1771538589995,0.0011,1949.2,1949.1,1.12927441]
[1771538592936,0.0011,1949.2,1949.1,0.001]
[1771538594932,1.12402307,1949.2,1949.1,0.001]
[1771538597641,1.12292307,1949.1,1949.0,0.001]
[1771538600147,2.40556634,1949.1,1949.0,0.001]
[1771538600446,1.12292307,1949.1,1949.0,0.001]
[1771538602244,1.12402307,1949.1,1949.0,0.001]
[1771538608653,2.40666634,1949.1,1949.0,0.001]
[1771538608853,1.12402307,1949.1,1949.0,0.001]
[1771538612958,2.40666634,1949.1,1949.0,0.001]
[1771538615046,1.12402307,1949.1,1949.0,0.001]
[1771538615455,0.0011,1949.1,1949.0,0.001]
[1771538620272,1.08489454,1949.1,1949.0,0.001]
[1771538629388,1.08489454,1949.1,1949.0,0.0002]
[1771538633900,1.08379454,1949.0,1948.8,0.001]
[1771538634066,1.08379454,1949.0,1948.4,0.001]
[1771538634391,1.08379454,1949.0,1948.4,1.17946091]
[1771538636990,1.28277489,1948.9,1948.4,1.17946091]
[1771538637197,1.08379454,1948.8,1948.4,1.17946091]
[1771538639111,2.36666186,1948.8,1948.4,1.17946091]
[1771538639271,1.08379454,1948.7,1948.4,1.17946091]
[1771538640111,1.08379454,1948.7,1948.5,0.001]
[1771538645685,1.08994072,1948.6,1948.5,0.001]
[1771538646093,1.08994072,1948.6,1948.3,0.001]
[1771538649284,2.45379723,1948.5,1948.3,0.001]
[1771538650115,1.170759,1948.4,1948.0,0.00153886]
[1771538651688,1.170759,1948.2,1948.0,0.00153886]
[1771538652782,1.170759,1948.2,1947.6,1.28362592]
[1771538653028,1.170759,1948.2,1947.5,1.14730906]
[1771538653191,1.170759,1948.2,1948.1,0.001]
[1771538653390,1.170759,1948.2,1947.5,1.14730906]
[1771538654288,1.170759,1948.0,1947.5,1.14730906]
[1771538654706,1.170759,1948.0,1947.3,3.35613421]
[1771538655012,1.170759,1948.0,1947.4,1.14730906]
[1771538655927,1.170759,1948.0,1947.1,1.14730906]
[1771538656132,1.170759,1947.6,1947.0,1.14884792]
[1771538656375,1.170759,1947.4,1946.6,1.14730906]
[1771538656667,1.28369704,1947.5,1946.6,1.14730906]
[1771538656859,1.170759,1947.5,1946.6,1.14730906]
[1771538658158,1.170759,1947.5,1946.6,2.43158927]
[1771538658159,1.170759,1947.3,1946.6,2.43158927]
[1771538658366,1.170759,1947.3,1946.6,1.14730906]
[1771538659457,1.170759,1947.3,1946.6,1.28428417]
[1771538659764,1.170759,1947.3,1946.7,1.14730906]
[1771538660136,1.170759,1947.3,1946.5,1.14730906]
[1771538660342,1.170759,1947.1,1946.6,1.14730906]
[1771538661872,1.170759,1947.1,1946.4,1.14730906]
[1771538663073,2.4547857,1947.0,1946.5,1.28435653]
[1771538663374,2.4547857,1947.0,1946.6,1.14730906]
[1771538663550,1.170759,1946.9,1946.6,1.14730906]
[1771538664152,1.170759,1946.9,1946.4,1.14730906]
[1771538665087,1.170759,1947.0,1946.4,1.14730906]
[1771538665246,1.170759,1947.0,1946.5,2.43166559]
[1771538665585,1.170759,1947.0,1946.0,1.09894824]
[1771538665586,1.170759,1946.9,1946.0,1.09894824]
[1771538665883,1.170759,1946.9,1946.6,0.001]
[1771538666081,1.170759,1946.9,1945.7,1.10027554]
[1771538666082,1.170759,1946.7,1945.7,1.10027554]
[1771538666249,1.170759,1946.5,1945.6,1.28494075]
[1771538666876,1.170759,1946.5,1946.3,0.001]
[1771538667080,1.170759,1946.5,1945.7,0.00116547]
[1771538667283,1.17120009,1946.3,1945.5,0.00116547]
[1771538667889,1.17120009,1946.3,1945.4,0.00116547]
[1771538668659,1.17120009,1946.3,1945.2,0.00232013]
[1771538668853,1.17120009,1946.1,1945.2,0.00346208]
[1771538669286,1.17120009,1945.9,1945.2,0.00346208]
[1771538669982,1.17120009,1946.1,1945.2,0.00346208]
[1771538670299,1.17120009,1946.3,1945.2,0.00346208]
[1771538671358,1.17120009,1945.9,1945.1,0.00568908]
[1771538671712,1.28455451,1946.2,1944.6,3.39740967]
[1771538671713,1.17404463,1946.1,1944.8,1.28541313]
[1771538671868,1.17558349,1946.0,1945.3,0.00110137]
[1771538672260,0.00153886,1946.0,1945.3,0.00110137]
[1771538672466,0.00043973,1946.0,1945.1,0.925]
[1771538672888,0.00043973,1946.0,1945.2,0.0708457]
[1771538673413,0.00043973,1946.0,1945.4,0.0708457]
[1771538673698,0.00043973,1946.0,1945.6,0.0708457]
[1771538674656,0.00043973,1946.0,1945.8,0.06999172]
[1771538676995,2.45885841,1946.7,1945.9,0.06829775]
[1771538677293,1.17459419,1946.6,1945.9,0.06829775]
[1771538677992,1.17459419,1946.8,1946.1,0.06736836]
[1771538678791,0.00153886,1947.0,1946.1,0.06736836]
[1771538678990,1.17459419,1946.8,1946.2,2.24144562]
[1771538679419,1.17459419,1946.8,1946.3,0.06644562]
[1771538679694,1.17459419,1946.8,1946.4,2.219]
[1771538681092,1.17459419,1946.8,1946.4,3.56795809]
[1771538681288,1.17459419,1946.8,1946.5,0.06454443]
[1771538682496,1.17459419,1946.8,1946.4,3.5033969]
[1771538683785,1.17459419,1946.8,1946.4,3.56505214]
[1771538686198,1.17613305,1947.0,1946.5,0.05969475]
[1771538686379,1.17613305,1947.0,1946.6,2.219]
[1771538688206,1.17613305,1947.0,1946.4,1.34409165]
[1771538688403,1.17459419,1946.9,1946.6,2.218]
[1771538689602,0.00153886,1947.0,1946.7,0.05672542]
[1771538689780,1.17459419,1946.9,1946.6,2.218]
[1771538689980,1.17459419,1946.9,1945.7,1.54185673]
[1771538689981,1.17459419,1946.9,1946.1,0.05571979]
[1771538690187,1.17459419,1946.9,1946.2,2.219]
[1771538691620,1.17459419,1946.7,1946.2,2.219]
[1771538691781,1.17459419,1946.7,1946.2,2.218]
[1771538692880,1.17459419,1946.7,1946.2,2.270676]
[1771538694726,1.28429055,1946.6,1946.3,0.05164477]
[1771538696016,2.45888474,1946.6,1946.3,0.05164477]
[1771538696217,2.45888474,1946.6,1946.2,2.26757991]
[1771538696724,1.17459419,1946.6,1946.3,0.04957991]
[1771538696923,0.0011,1946.8,1946.3,0.04957991]
[1771538697634,1.17569419,1946.8,1946.3,0.04957991]
[1771538698002,2.45985394,1946.8,1946.3,0.04957991]
[1771538698404,1.17459419,1946.7,1946.3,0.04957991]
[1771538698924,1.17459419,1946.7,1946.4,0.04643095]
[1771538700137,0.0011,1946.8,1946.4,0.04643095]
[1771538700912,0.0011,1946.8,1946.4,0.04430963]
[1771538701108,0.0011,1946.8,1946.6,0.04430963]
[1771538702748,0.0011,1946.8,1946.7,2.215]
[1771538704932,5.13673749,1947.2,1947.0,0.03962378]
[1771538704933,0.0011,1947.2,1947.0,0.03962378]
[1771538705232,0.0011,1947.2,1946.7,3.49922458]
[1771538707331,0.0011,1947.1,1946.7,3.49922458]
[1771538715844,0.0011,1947.3,1946.7,3.49922458]
[1771538716617,1.19605608,1947.3,1946.7,3.49922458]
[1771538716943,1.1572157,1947.3,1946.8,0.03273712]
[1771538718134,1.1572157,1947.3,1946.9,2.24129411]
[1771538719219,1.1572157,1947.3,1947.0,0.03195278]
[1771538719550,0.0011,1947.4,1947.0,0.03195278]
[1771538720222,0.0011,1947.4,1947.2,0.03169746]
[1771538722752,0.0011,1947.4,1947.3,1.3150268]
[1771538724253,0.0011,1947.4,1947.3,0.03119791]
[1771538724632,0.0011,1947.4,1947.2,1.28384573]
[1771538724633,1.17718589,1947.4,1947.0,1.2840267]
[1771538725356,1.17718589,1947.4,1947.0,1.31452075]
[1771538729326,2.46095528,1947.4,1946.9,2.20904453]
[1771538729550,1.17608589,1947.3,1946.9,2.20904453]
[1771538729746,1.17718589,1947.4,1946.9,2.20904453]
[1771538729950,1.17718589,1947.4,1946.9,2.23841293]
[1771538730859,1.17718589,1947.4,1947.0,0.0293684]
[1771538731859,1.17718589,1947.4,1947.1,1.28396076]
[1771538732647,1.17608589,1947.3,1947.1,0.925]
[1771538732955,1.17608589,1947.3,1947.0,0.925]
[1771538735360,1.17608589,1947.3,1947.1,0.001]
[1771538735530,1.17718589,1947.3,1947.1,0.001]
[1771538743535,1.10349441,1947.2,1947.1,0.001]
[1771538743735,1.10349441,1947.2,1946.8,0.926]
[1771538744470,1.10349441,1947.2,1946.9,0.96097351]
[1771538745289,0.0011,1947.3,1946.9,0.96097351]
[1771538745769,1.10459441,1947.3,1946.9,2.24500059]
[1771538746086,0.0011,1947.3,1947.0,0.96183493]
[1771538748702,0.0011,1947.3,1947.0,2.24580217]
[1771538749387,0.0011,1947.3,1947.1,0.001]
[1771538749765,0.0011,1947.2,1947.1,0.001]
[1771538749970,0.0011,1947.2,1947.1,0.96450125]
[1771538751180,0.0011,1947.2,1947.1,2.24846201]
[1771538753168,0.0011,1947.6,1947.2,0.96469963]
[1771538755580,0.0011,1947.6,1947.4,1.09221674]
[1771538755910,0.0011,1947.6,1947.5,2.01721674]
[1771538757610,0.0011,1947.6,1947.5,3.30091378]
[1771538760219,1.10349441,1947.9,1947.6,1.09221674]
[1771538760511,1.10503327,1948.0,1947.6,1.09221674]
[1771538762227,1.09525681,1948.2,1947.7,1.10965511]
[1771538762532,1.09525681,1948.2,1947.5,3.31835215]
[1771538762696,1.28317883,1948.3,1947.5,3.31835215]
[1771538762697,1.09525681,1947.8,1947.5,3.31835215]
[1771538763731,0.0011,1947.9,1947.6,1.10965511]
[1771538763918,1.09635681,1947.9,1947.6,1.10965511]
[1771538765937,1.09635681,1947.9,1947.6,2.39323846]
[1771538769468,0.0011,1948.0,1947.7,1.18274909]
[1771538770777,0.0011,1948.0,1947.7,2.10774909]
[1771538772476,0.0011,1948.0,1947.8,1.28349933]
[1771538772796,0.56969785,1948.0,1947.7,3.39126019]
[1771538774993,0.56969785,1948.0,1947.7,3.39226019]
[1771538775199,0.0011,1947.9,1947.7,3.39226019]
[1771538781982,0.0011,1947.9,1947.8,1.18274909]
[1771538782683,0.0011,1948.2,1947.9,1.18274909]
[1771538784089,0.00114001,1948.5,1948.0,1.22038276]
[1771538784798,0.00224001,1948.6,1948.0,1.22038276]
[1771538785565,0.00284901,1948.5,1947.9,1.22038276]
[1771538785768,0.00284901,1948.5,1947.7,0.001]
[1771538786068,0.00284901,1948.5,1947.8,0.925]
[1771538787835,0.00284901,1948.5,1947.8,0.926]
[1771538788705,0.01521831,1948.3,1947.8,0.926]
[1771538791015,0.01472992,1948.1,1947.8,0.926]
[1771538792614,0.01472992,1948.1,1947.5,0.001]
[1771538792993,0.01486397,1947.9,1947.5,0.001]
[1771538795725,0.01793963,1947.7,1947.5,0.001]
[1771538797813,1.30606645,1947.6,1947.5,0.001]
[1771538798591,0.02389542,1947.5,1947.2,0.925]
[1771538798821,0.02389542,1947.5,1947.1,0.001]
[1771538800418,0.0267798,1947.4,1947.2,0.001]
[1771538804633,5.13511747,1947.8,1947.2,1.22188276]
[1771538804634,0.03234113,1947.7,1947.2,1.22188276]
[1771538806739,1.28363113,1947.6,1947.2,1.22188276]
[1771538806943,0.03502328,1947.5,1947.2,0.001]
[1771538808640,1.32125397,1947.7,1947.2,1.22188276]
[1771538808808,0.03892485,1947.6,1947.2,1.22188276]